[Event "ESP-chT 2nd Division 2019"]
[Site "Linares"]
[Date "2019.08.22"]
[Round "5.40"]
[White "Perdigones Gomez, Mercedes"]
[Black "Lorenzo Serrano, Henar"]
[Result "0-1"]
[ECO "B01"]
[WhiteElo "1317"]
[BlackElo "1719"]
[Annotator "NA"]
[PlyCount "60"]
[EventDate "2019.08.19"]
[EventType "team-tourn"]
[EventCountry "ESP"]
[SourceTitle "playchess.com"]
[Source "ChessBase"]
[SourceQuality "1"]
[TimeControl "5400+30"]

1. e4 {[%emt 0:00:00]} d5 {[%emt 0:00:00]} 2. exd5 {[%emt 0:00:01]} Nf6 {[%emt 0:00:22]} 3. Nf3 {[%emt 0:06:09]} Qxd5 {[%emt 0:01:58]} 4. Nc3 {[%emt 0:00:35]} Qa5 {[%emt 0:04:15]} 5. g3 {[%emt 0:00:37]} Bg4 {[%emt 0:05:18]} 6. Bg2 {[%emt 0:02:38]} Nc6 {[%emt 0:02:03]} 7. h3 {[%emt 0:05:41]} Bh5 {[%emt 0:00:24]} 8. a3 {[%emt 0:02:53]} O-O-O {[%emt 0:02:51]} 9. b4 {[%emt 0:02:18]} Nxb4 {[%emt 0:05:00]} 10. Rb1 {[%emt 0:02:28]} Nbd5 {[%emt 0:04:38]} 11. Nxd5 {[%emt 0:12:00]} Nxd5 {[%emt 0:02:05]} 12. Qe2 {[%emt 0:03:37]} c6 {[%emt 0:05:25]} 13. Qe5 {[%emt 0:07:35]} Bg6 {[%emt 0:02:59]} 14. Qb2 {[%emt 0:00:53]} Qb6 {[%emt 0:05:04]} 15. Qa1 {[%emt 0:08:27]} Qc5 {[%emt 0:06:43]} 16. Qb2 {[%emt 0:04:34]} Nb6 {[%emt 0:01:53]} 17. d3 {[%emt 0:01:54]} e5 {[%emt 0:13:02]} 18. O-O {[%emt 0:03:28]} Bd6 {[%emt 0:05:48]} 19. Re1 {[%emt 0:06:31]} Rhe8 {[%emt 0:02:57]} 20. Qb3 {[%emt 0:04:56]} e4 {[%emt 0:06:04]} 21. d4 {[%emt 0:04:35]} Qd5 {[%emt 0:03:37]} 22. Ng5 {[%emt 0:07:47]} h6 {[%emt 0:03:54]} 23. c4 {[%emt 0:03:17]} Qxc4 {[%emt 0:05:29]} 24. Nxe4 {[%emt 0:02:51]} Bc7 {[%emt 0:04:27]} 25. Qxc4 {[%emt 0:04:14]} Nxc4 {[%emt 0:00:05]} 26. Kf1 {[%emt 0:00:59]} Rxd4 {[%emt 0:01:42]} 27. Rb4 {[%emt 0:01:50]} Bxe4 {[%emt 0:00:51]} 28. Rxe4 {[%emt 0:00:27]} Rexe4 {[%emt 0:00:23]} 29. Bxe4 {[%emt 0:00:04]} Rxe4 {[%emt 0:00:29]} 30. Be3 {[%emt 0:01:09]} Nxe3+ {[%emt 0:00:11]} 0-1

[Event "ESP-chT 2nd Division 2019"]
[Site "Linares"]
[Date "2019.08.22"]
[Round "6.2"]
[White "Carrasco Martinez, Juan M."]
[Black "Del Rio De Angelis, Salvador G."]
[Result "1/2-1/2"]
[ECO "B23"]
[WhiteElo "2374"]
[BlackElo "2472"]
[Annotator "ChessBase"]
[PlyCount "64"]
[EventDate "2019.08.19"]
[EventType "team-tourn"]
[EventCountry "ESP"]
[SourceTitle "playchess.com"]
[Source "ChessBase"]
[SourceQuality "1"]
[TimeControl "5400+30"]

1. e4 {[%emt 0:00:00]} c5 {[%emt 0:00:01]} 2. Nc3 {[%emt 0:00:00]} e6 {[%emt 0:00:23]} 3. Nge2 {[%emt 0:00:06]} a6 {[%emt 0:00:11]} 4. g3 {[%emt 0:00:36]} b5 {[%emt 0:00:23]} 5. Bg2 {[%emt 0:00:09]} Bb7 {[%emt 0:01:01]} 6. d4 {[%emt 0:00:53]} cxd4 {[%emt 0:03:16]} 7. Nxd4 {[%emt 0:00:40]} d6 {[%emt 0:06:04]} 8. O-O {[%emt 0:02:58]} Nd7 {[%emt 0:00:29]} 9. Re1 {[%emt 0:02:04]} Qc7 {[%emt 0:07:31]} 10. Bg5 {[%emt 0:03:16]} Ngf6 {[%emt 0:07:06]} 11. a4 {[%emt 0:03:34]} b4 {[%emt 0:00:23]} 12. Nd5 {[%emt 0:00:45]} exd5 {[%emt 0:03:27]} 13. exd5+ {[%emt 0:01:14]} Ne5 {[%emt 0:01:21]} 14. f4 {[%emt 0:02:47]} O-O-O {[%emt 0:00:44]} 15. fxe5 {[%emt 0:05:15]} dxe5 {[%emt 0:00:06]} 16. Bxf6 {[%emt 0:02:02]} gxf6 {[%emt 0:00:22]} 17. Qg4+ {[%emt 0:00:59]} Qd7 {[%emt 0:03:29]} 18. Qxd7+ {[%emt 0:06:14]} Rxd7 {[%emt 0:00:24]} 19. Nc6 {[%emt 0:00:08]} Bxc6 {[%emt 0:01:58]} 20. dxc6 {[%emt 0:00:06]} Rd2 {[%emt 0:00:09]} 21. Rad1 {[%emt 0:04:03]} Bc5+ {[%emt 0:01:39]} 22. Kh1 {[%emt 0:01:06]} Rhd8 {[%emt 0:00:07]} 23. Rxd2 {[%emt 0:01:24]} Rxd2 {[%emt 0:00:08]} 24. Be4 {[%emt 0:01:12]} h6 {[%emt 0:03:45]} 25. b3 {[%emt 0:20:05]} Rf2 {[%emt 0:05:50]} 26. Bd3 {[%emt 0:02:12]} a5 {[%emt 0:01:25]} 27. Rf1 {[%emt 0:00:23]} Rxf1+ {[%emt 0:00:26]} 28. Bxf1 {[%emt 0:00:06]} Kc7 {[%emt 0:00:05]} 29. Bb5 {[%emt 0:02:26]} Kd6 {[%emt 0:03:18]} 30. g4 {[%emt 0:01:08]} Be3 {[%emt 0:02:50]} 31. Kg2 {[%emt 0:00:12]} Bf4 {[%emt 0:00:11]} 32. h3 {[%emt 0:00:07]} e4 {[%emt 0:02:10]} 1/2-1/2

[Event "ESP-chT 2nd Division 2019"]
[Site "Linares"]
[Date "2019.08.22"]
[Round "6.3"]
[White "Iruzubieta Villaluenga, Jesus M"]
[Black "Figuero Toro, Julian Francisco"]
[Result "1-0"]
[ECO "C24"]
[WhiteElo "2438"]
[BlackElo "2268"]
[Annotator "NA"]
[PlyCount "53"]
[EventDate "2019.08.19"]
[EventType "team-tourn"]
[EventCountry "ESP"]
[SourceTitle "playchess.com"]
[Source "ChessBase"]
[SourceQuality "1"]
[TimeControl "5400+30"]

1. e4 {[%emt 0:00:00]} e5 {[%emt 0:00:00]} 2. Bc4 {[%emt 0:00:01]} Nf6 {[%emt 0:02:08]} 3. d3 {[%emt 0:00:08]} c6 {[%emt 0:00:17]} 4. Nf3 {[%emt 0:00:10]} Be7 {[%emt 0:00:12]} 5. O-O {[%emt 0:02:44]} d6 {[%emt 0:00:06]} 6. Re1 {[%emt 0:02:22]} O-O {[%emt 0:00:41]} 7. Bb3 {[%emt 0:00:26]} Nbd7 {[%emt 0:06:11]} 8. c3 {[%emt 0:00:15]} Nc5 {[%emt 0:01:47]} 9. Bc2 {[%emt 0:00:06]} Bg4 {[%emt 0:00:21]} 10. Nbd2 {[%emt 0:03:52]} Ne6 {[%emt 0:01:43]} 11. h3 {[%emt 0:00:58]} Bh5 {[%emt 0:00:16]} 12. Nf1 {[%emt 0:00:48]} Re8 {[%emt 0:00:55]} 13. Ng3 {[%emt 0:00:49]} Bxf3 {[%emt 0:00:15]} 14. Qxf3 {[%emt 0:00:07]} g6 {[%emt 0:00:15]} 15. Be3 {[%emt 0:04:58]} Nd7 {[%emt 0:03:23]} 16. d4 {[%emt 0:08:33]} Bg5 {[%emt 0:17:49]} 17. Bb3 {[%emt 0:02:08]} Bxe3 {[%emt 0:01:17]} 18. Qxe3 {[%emt 0:01:06]} exd4 {[%emt 0:11:23]} 19. cxd4 {[%emt 0:00:23]} Qf6 {[%emt 0:06:12]} 20. Rad1 {[%emt 0:01:30]} d5 {[%emt 0:00:45]} 21. exd5 {[%emt 0:05:29]} Nc7 {[%emt 0:00:29]} 22. Ne4 {[%emt 0:00:33]} Qg7 {[%emt 0:02:05]} 23. dxc6 {[%emt 0:01:21]} bxc6 {[%emt 0:00:13]} 24. Qc3 {[%emt 0:01:09]} Nb6 {[%emt 0:04:06]} 25. Qxc6 {[%emt 0:00:24]} Ne6 {[%emt 0:05:00]} 26. Nd6 {[%emt 0:04:17]} Red8 {[%emt 0:01:15]} 27. Nxf7 {[%emt 0:00:53]} 1-0

[Event "ESP-chT 2nd Division 2019"]
[Site "Linares"]
[Date "2019.08.22"]
[Round "6.4"]
[White "Gonzalez Cano, Juan Jose"]
[Black "Trigo Urquijo, Sergio"]
[Result "1/2-1/2"]
[ECO "C95"]
[WhiteElo "2019"]
[BlackElo "2385"]
[Annotator "NA"]
[PlyCount "68"]
[EventDate "2019.08.19"]
[EventType "team-tourn"]
[EventCountry "ESP"]
[SourceTitle "playchess.com"]
[Source "ChessBase"]
[SourceQuality "1"]
[TimeControl "5400+30"]

1. e4 {[%emt 0:00:00]} e5 {[%emt 0:00:00]} 2. Nf3 {[%emt 0:00:00]} Nc6 {[%emt 0:00:00]} 3. Bb5 {[%emt 0:00:00]} a6 {[%emt 0:00:01]} 4. Ba4 {[%emt 0:00:00]} Nf6 {[%emt 0:00:14]} 5. O-O {[%emt 0:00:00]} Be7 {[%emt 0:00:25]} 6. Re1 {[%emt 0:02:03]} b5 {[%emt 0:00:17]} 7. Bb3 {[%emt 0:00:05]} d6 {[%emt 0:00:23]} 8. c3 {[%emt 0:00:35]} O-O {[%emt 0:00:14]} 9. h3 {[%emt 0:00:11]} Nb8 {[%emt 0:00:29]} 10. d4 {[%emt 0:00:19]} Nbd7 {[%emt 0:00:15]} 11. Nbd2 {[%emt 0:01:45]} Bb7 {[%emt 0:00:25]} 12. Bc2 {[%emt 0:00:11]} Re8 {[%emt 0:00:34]} 13. Nf1 {[%emt 0:05:10]} Bf8 {[%emt 0:00:10]} 14. Ng3 {[%emt 0:03:02]} g6 {[%emt 0:00:11]} 15. a4 {[%emt 0:00:38]} c5 {[%emt 0:02:11]} 16. d5 {[%emt 0:07:39]} c4 {[%emt 0:00:25]} 17. Be3 {[%emt 0:01:36]} Nc5 {[%emt 0:05:48]} 18. Bxc5 {[%emt 0:11:39]} dxc5 {[%emt 0:00:23]} 19. Qe2 {[%emt 0:00:26]} Qd6 {[%emt 0:19:59]} 20. Qe3 {[%emt 0:30:26]} Nd7 {[%emt 0:08:08]} 21. Nh2 {[%emt 0:11:50]} h5 {[%emt 0:04:27]} 22. Nf3 {[%emt 0:06:35]} Bg7 {[%emt 0:08:58]} 23. Ne2 {[%emt 0:08:21]} Qf8 {[%emt 0:09:08]} 24. g4 {[%emt 0:00:24]} hxg4 {[%emt 0:04:40]} 25. hxg4 {[%emt 0:00:04]} f6 {[%emt 0:00:38]} 26. Ng3 {[%emt 0:00:58]} Bh6 {[%emt 0:01:23]} 27. Qe2 {[%emt 0:00:26]} Kg7 {[%emt 0:01:32]} 28. Kg2 {[%emt 0:00:11]} Bg5 {[%emt 0:05:04]} 29. Rh1 {[%emt 0:04:00]} Qf7 {[%emt 0:01:57]} 30. Rh3 {[%emt 0:01:18]} Rh8 {[%emt 0:00:45]} 31. Rah1 {[%emt 0:02:09]} Rxh3 {[%emt 0:00:50]} 32. Rxh3 {[%emt 0:00:04]} Rh8 33. Rxh8 Kxh8 34. axb5 axb5 1/2-1/2

[Event "ESP-chT 2nd Division 2019"]
[Site "Linares"]
[Date "2019.08.22"]
[Round "6.5"]
[White "Sosa Suarez, Carla Cristina"]
[Black "Guillo Longares, Cecilia"]
[Result "1/2-1/2"]
[ECO "B36"]
[WhiteElo "2135"]
[BlackElo "1916"]
[Annotator "NA"]
[PlyCount "69"]
[EventDate "2019.08.19"]
[EventType "team-tourn"]
[EventCountry "ESP"]
[SourceTitle "playchess.com"]
[Source "ChessBase"]
[SourceQuality "1"]
[TimeControl "5400+30"]

1. e4 {[%emt 0:00:00]} c5 {[%emt 0:00:00]} 2. Nf3 {[%emt 0:00:00]} Nc6 {[%emt 0:00:00]} 3. d4 {[%emt 0:00:00]} cxd4 {[%emt 0:00:00]} 4. Nxd4 {[%emt 0:00:00]} g6 {[%emt 0:00:00]} 5. c4 {[%emt 0:00:09]} Nf6 {[%emt 0:00:00]} 6. Nc3 {[%emt 0:00:09]} Nxd4 {[%emt 0:00:00]} 7. Qxd4 {[%emt 0:00:05]} d6 {[%emt 0:00:01]} 8. Be2 {[%emt 0:00:50]} Bg7 {[%emt 0:00:05]} 9. Be3 {[%emt 0:00:23]} O-O {[%emt 0:00:07]} 10. Qd2 {[%emt 0:00:28]} a5 {[%emt 0:00:05]} 11. O-O {[%emt 0:00:07]} a4 {[%emt 0:00:04]} 12. Bd4 {[%emt 0:00:49]} Qa5 {[%emt 0:01:05]} 13. Rad1 {[%emt 0:00:11]} Bd7 {[%emt 0:01:51]} 14. c5 {[%emt 0:05:20]} Bc6 {[%emt 0:00:53]} 15. cxd6 {[%emt 0:01:09]} exd6 {[%emt 0:08:28]} 16. Qf4 {[%emt 0:02:34]} Ne8 {[%emt 0:07:41]} 17. Nd5 {[%emt 0:04:18]} Bxd5 {[%emt 0:03:47]} 18. Bxg7 {[%emt 0:01:40]} Kxg7 {[%emt 0:00:48]} 19. Rxd5 {[%emt 0:00:49]} Qc7 {[%emt 0:02:12]} 20. Rc1 {[%emt 0:04:02]} Qe7 {[%emt 0:00:16]} 21. Bd3 {[%emt 0:02:21]} Nf6 {[%emt 0:02:56]} 22. Rd4 {[%emt 0:02:23]} Qe5 {[%emt 0:04:39]} 23. Qxe5 {[%emt 0:04:02]} dxe5 {[%emt 0:00:10]} 24. Rb4 {[%emt 0:03:33]} Rfd8 {[%emt 0:02:30]} 25. Rc3 {[%emt 0:08:18]} Rd7 {[%emt 0:08:28]} 26. Kf1 {[%emt 0:01:03]} Rad8 {[%emt 0:02:17]} 27. Ke2 {[%emt 0:01:28]} Rd4 {[%emt 0:12:00]} 28. Rxb7 {[%emt 0:03:30]} Nxe4 {[%emt 0:00:11]} 29. Bxe4 {[%emt 0:00:50]} Rxe4+ {[%emt 0:00:06]} 30. Re3 {[%emt 0:01:01]} Red4 {[%emt 0:18:00]} 31. Rxe5 {[%emt 0:09:05]} Rd2+ {[%emt 0:01:56]} 32. Kf3 {[%emt 0:07:49]} a3 {[%emt 0:00:43]} 33. bxa3 {[%emt 0:04:31]} Rxa2 {[%emt 0:00:20]} 34. Ree7 {[%emt 0:01:10]} Rxa3+ {[%emt 0:00:07]} 35. Ke2 {[%emt 0:00:38]} 1/2-1/2

[Event "ESP-chT 2nd Division 2019"]
[Site "Linares"]
[Date "2019.08.22"]
[Round "6.6"]
[White "Ayats Llobera, Gerard"]
[Black "Suarez Gomez, Julio"]
[Result "1/2-1/2"]
[ECO "C00"]
[WhiteElo "2377"]
[BlackElo "2433"]
[Annotator "NA"]
[PlyCount "44"]
[EventDate "2019.08.19"]
[EventType "team-tourn"]
[EventCountry "ESP"]
[SourceTitle "playchess.com"]
[Source "ChessBase"]
[SourceQuality "1"]
[TimeControl "5400+30"]

1. e4 {[%emt 0:01:01]} e6 {[%emt 0:00:00]} 2. d3 {[%emt 0:00:26]} d5 {[%emt 0:00:23]} 3. Qe2 {[%emt 0:00:07]} Ne7 {[%emt 0:02:18]} 4. Nf3 {[%emt 0:01:27]} c5 {[%emt 0:00:11]} 5. g3 {[%emt 0:03:17]} Nbc6 {[%emt 0:00:40]} 6. Bg2 {[%emt 0:01:15]} g6 {[%emt 0:00:12]} 7. h4 {[%emt 0:00:23]} h6 {[%emt 0:01:20]} 8. O-O {[%emt 0:02:41]} Bg7 {[%emt 0:00:18]} 9. e5 {[%emt 0:00:27]} O-O {[%emt 0:03:33]} 10. Nbd2 {[%emt 0:01:41]} Nf5 {[%emt 0:06:12]} 11. Nb3 {[%emt 0:08:01]} b6 {[%emt 0:00:36]} 12. Bf4 {[%emt 0:00:16]} a5 {[%emt 0:03:24]} 13. a4 {[%emt 0:01:00]} Ba6 {[%emt 0:03:28]} 14. Qd2 {[%emt 0:06:17]} Kh7 {[%emt 0:06:43]} 15. Rfe1 {[%emt 0:01:30]} Rc8 {[%emt 0:00:41]} 16. c3 {[%emt 0:13:21]} Qe7 {[%emt 0:10:55]} 17. Bh3 {[%emt 0:16:19]} Qd8 {[%emt 0:18:10]} 18. Bg2 {[%emt 0:00:31]} Qe7 {[%emt 0:00:04]} 19. Bh3 {[%emt 0:00:04]} Qd8 {[%emt 0:00:04]} 20. Bg2 {[%emt 0:00:04]} Qe7 21. Bh3 Rfd8 22. h5 g5 1/2-1/2

[Event "ESP-chT 2nd Division 2019"]
[Site "Linares"]
[Date "2019.08.22"]
[Round "6.7"]
[White "Reinaldo Castineira, Roi"]
[Black "Martin Gonzalez, Angel"]
[Result "1-0"]
[ECO "B24"]
[WhiteElo "2467"]
[BlackElo "2334"]
[Annotator "ChessBase"]
[PlyCount "116"]
[EventDate "2019.08.19"]
[EventType "team-tourn"]
[EventCountry "ESP"]
[SourceTitle "playchess.com"]
[Source "ChessBase"]
[SourceQuality "1"]
[TimeControl "5400+30"]

1. e4 {[%emt 0:00:00]} c5 {[%emt 0:00:00]} 2. Nc3 {[%emt 0:00:14]} Nc6 {[%emt 0:00:00]} 3. Bb5 {[%emt 0:00:11]} Nd4 {[%emt 0:02:52]} 4. Bc4 {[%emt 0:00:07]} g6 {[%emt 0:00:05]} 5. Nf3 {[%emt 0:00:06]} Bg7 {[%emt 0:00:09]} 6. Nxd4 {[%emt 0:00:14]} cxd4 {[%emt 0:00:08]} 7. Qf3 {[%emt 0:00:06]} e6 {[%emt 0:00:15]} 8. Nb5 {[%emt 0:02:01]} d5 {[%emt 0:00:06]} 9. exd5 {[%emt 0:02:20]} a6 {[%emt 0:00:01]} 10. dxe6 {[%emt 0:03:33]} fxe6 {[%emt 0:00:07]} 11. Na3 {[%emt 0:00:14]} Nf6 {[%emt 0:00:25]} 12. d3 {[%emt 0:23:37]} O-O {[%emt 0:00:30]} 13. Bb3 {[%emt 0:00:08]} Nd5 {[%emt 0:15:29]} 14. Qg3 {[%emt 0:05:25]} Rf5 {[%emt 0:06:54]} 15. O-O {[%emt 0:15:24]} b5 {[%emt 0:03:15]} 16. Bd2 {[%emt 0:00:05]} Be5 {[%emt 0:14:15]} 17. f4 {[%emt 0:06:33]} Bd6 {[%emt 0:00:21]} 18. Rae1 {[%emt 0:00:50]} Qc7 {[%emt 0:09:07]} 19. Re4 {[%emt 0:10:27]} Bd7 {[%emt 0:04:33]} 20. Qf3 {[%emt 0:01:16]} Raf8 {[%emt 0:02:39]} 21. g3 {[%emt 0:00:47]} a5 {[%emt 0:00:30]} 22. Nxb5 {[%emt 0:13:06]} Bxb5 {[%emt 0:00:20]} 23. Rxe6 {[%emt 0:00:04]} Bc6 {[%emt 0:01:27]} 24. g4 {[%emt 0:00:05]} a4 {[%emt 0:00:39]} 25. Bc4 {[%emt 0:03:03]} Nb6 {[%emt 0:03:26]} 26. Qxc6 {[%emt 0:00:55]} Qxc6 {[%emt 0:01:46]} 27. Rxd6+ {[%emt 0:00:05]} Nxc4 {[%emt 0:02:03]} 28. Rxc6 {[%emt 0:00:02]} Nxd2 {[%emt 0:00:02]} 29. gxf5 {[%emt 0:00:09]} Nxf1 {[%emt 0:00:06]} 30. Kxf1 {[%emt 0:00:03]} Rxf5 {[%emt 0:00:03]} 31. Rc4 {[%emt 0:00:09]} Rxf4+ {[%emt 0:00:17]} 32. Kg2 {[%emt 0:00:14]} a3 {[%emt 0:01:07]} 33. bxa3 {[%emt 0:00:12]} Kf7 {[%emt 0:00:08]} 34. c3 {[%emt 0:01:44]} Ke6 {[%emt 0:01:38]} 35. Rxd4 {[%emt 0:00:13]} Rf7 {[%emt 0:02:09]} 36. a4 {[%emt 0:00:06]} Rc7 {[%emt 0:00:23]} 37. Rc4 {[%emt 0:00:18]} Rd7 {[%emt 0:01:27]} 38. d4 {[%emt 0:00:10]} Kd5 {[%emt 0:04:34]} 39. Rc5+ {[%emt 0:00:06]} Ke4 {[%emt 0:00:05]} 40. a5 {[%emt 0:00:14]} Rb7 {[%emt 0:00:14]} 41. d5 {[%emt 0:03:12]} Ke5 {[%emt 0:04:13]} 42. c4 {[%emt 0:06:39]} Rb2+ {[%emt 0:00:12]} 43. Kg3 {[%emt 0:00:05]} Rxa2 {[%emt 0:00:11]} 44. h4 {[%emt 0:01:06]} Ra1 {[%emt 0:01:58]} 45. Rc6 {[%emt 0:01:45]} Rxa5 {[%emt 0:00:15]} 46. d6 {[%emt 0:00:04]} Ra3+ {[%emt 0:06:53]} 47. Kg4 {[%emt 0:01:14]} Rd3 {[%emt 0:01:32]} 48. c5 {[%emt 0:00:33]} Ke6 {[%emt 0:01:36]} 49. Rc7 {[%emt 0:00:26]} Rd5 {[%emt 0:00:58]} 50. Kf4 {[%emt 0:00:51]} Rd4+ {[%emt 0:02:40]} 51. Ke3 {[%emt 0:00:32]} Rd5 {[%emt 0:01:31]} 52. Ke4 {[%emt 0:00:35]} Rd1 {[%emt 0:00:36]} 53. Re7+ {[%emt 0:00:29]} Kf6 {[%emt 0:00:01]} 54. Rxh7 {[%emt 0:00:09]} Ke6 {[%emt 0:00:33]} 55. Re7+ {[%emt 0:00:18]} Kf6 {[%emt 0:00:07]} 56. Rc7 {[%emt 0:00:06]} Ke6 {[%emt 0:00:01]} 57. d7 {[%emt 0:01:18]} Rxd7 {[%emt 0:00:25]} 58. Rxd7 {[%emt 0:00:05]} Kxd7 {[%emt 0:00:08]} 1-0

[Event "ESP-chT 2nd Division 2019"]
[Site "Linares"]
[Date "2019.08.22"]
[Round "6.8"]
[White "Jimenez Ruano, Adrian"]
[Black "Laiz Ibanez, Hector"]
[Result "1-0"]
[ECO "E48"]
[WhiteElo "2278"]
[BlackElo "2274"]
[Annotator "NA"]
[PlyCount "101"]
[EventDate "2019.08.19"]
[EventType "team-tourn"]
[EventCountry "ESP"]
[SourceTitle "playchess.com"]
[Source "ChessBase"]
[SourceQuality "1"]
[TimeControl "5400+30"]

1. d4 {[%emt 0:00:03]} Nf6 {[%emt 0:00:00]} 2. c4 {[%emt 0:00:32]} e6 {[%emt 0:00:00]} 3. Nc3 {[%emt 0:00:48]} Bb4 {[%emt 0:00:00]} 4. e3 {[%emt 0:00:05]} O-O {[%emt 0:00:00]} 5. Bd3 {[%emt 0:00:02]} d5 {[%emt 0:00:05]} 6. cxd5 {[%emt 0:00:04]} exd5 {[%emt 0:00:06]} 7. Nge2 {[%emt 0:00:10]} Re8 {[%emt 0:00:12]} 8. Bd2 {[%emt 0:00:08]} Bd6 {[%emt 0:00:10]} 9. Rc1 {[%emt 0:00:04]} a6 {[%emt 0:07:07]} 10. O-O {[%emt 0:00:10]} Nbd7 {[%emt 0:00:11]} 11. Ng3 {[%emt 0:11:27]} c6 {[%emt 0:05:35]} 12. Qc2 {[%emt 0:09:03]} Nf8 {[%emt 0:06:05]} 13. f3 {[%emt 0:13:04]} c5 {[%emt 0:10:00]} 14. Nce2 {[%emt 0:02:53]} c4 {[%emt 0:09:07]} 15. Bf5 {[%emt 0:00:14]} b5 {[%emt 0:04:07]} 16. Kh1 {[%emt 0:06:28]} Bxf5 {[%emt 0:19:30]} 17. Nxf5 {[%emt 0:01:11]} Bc7 {[%emt 0:00:50]} 18. g4 {[%emt 0:08:40]} a5 {[%emt 0:01:57]} 19. Neg3 {[%emt 0:07:03]} Ne6 {[%emt 0:05:51]} 20. g5 {[%emt 0:05:49]} Nd7 {[%emt 0:04:49]} 21. f4 {[%emt 0:01:54]} Ra6 {[%emt 0:02:06]} 22. Rf3 {[%emt 0:04:23]} Bd6 {[%emt 0:07:21]} 23. Rg1 {[%emt 0:11:01]} Bf8 {[%emt 0:00:32]} 24. Nh5 {[%emt 0:03:42]} g6 {[%emt 0:00:36]} 25. Rh3 {[%emt 0:00:49]} Nc7 {[%emt 0:05:16]} 26. Qd1 {[%emt 0:01:21]} Kh8 {[%emt 0:02:49]} 27. Nhg3 {[%emt 0:02:33]} gxf5 {[%emt 0:05:15]} 28. Qh5 {[%emt 0:00:16]} h6 {[%emt 0:00:04]} 29. Nxf5 {[%emt 0:01:53]} Ree6 {[%emt 0:01:54]} 30. Nxh6 {[%emt 0:00:43]} Bxh6 {[%emt 0:02:36]} 31. f5 {[%emt 0:00:01]} Rec6 {[%emt 0:00:42]} 32. g6 {[%emt 0:00:13]} Qf8 {[%emt 0:00:25]} 33. gxf7 {[%emt 0:06:05]} Rf6 {[%emt 0:00:12]} 34. Rg8+ {[%emt 0:01:12]} Qxg8 {[%emt 0:00:14]} 35. fxg8=Q+ {[%emt 0:00:07]} Kxg8 {[%emt 0:00:03]} 36. Rg3+ {[%emt 0:01:03]} Bg7 {[%emt 0:00:30]} 37. Qg4 {[%emt 0:00:34]} Rf7 {[%emt 0:00:43]} 38. Qh4 {[%emt 0:01:41]} Nf6 {[%emt 0:00:10]} 39. a3 {[%emt 0:01:10]} Nce8 {[%emt 0:00:23]} 40. Rg6 {[%emt 0:00:18]} Nd6 {[%emt 0:00:25]} 41. Qf4 {[%emt 0:00:44]} Nfe4 {[%emt 0:01:11]} 42. Bc3 {[%emt 0:00:35]} Rxf5 {[%emt 0:00:57]} 43. Qh4 {[%emt 0:00:27]} Kf7 {[%emt 0:00:35]} 44. Qh7 {[%emt 0:00:15]} Rf1+ {[%emt 0:00:46]} 45. Kg2 {[%emt 0:00:00]} Rf2+ {[%emt 0:00:27]} 46. Kg1 {[%emt 0:00:01]} Nf5 {[%emt 0:00:30]} 47. Rxa6 {[%emt 0:00:23]} Nxe3 {[%emt 0:00:15]} 48. Qg6+ {[%emt 0:00:54]} Kg8 {[%emt 0:00:25]} 49. Ra8+ {[%emt 0:00:02]} Rf8 {[%emt 0:00:05]} 50. Qe6+ {[%emt 0:00:09]} Kh7 {[%emt 0:00:29]} 51. Qh3+ {[%emt 0:00:10]} 1-0

[Event "ESP-chT 2nd Division 2019"]
[Site "Linares"]
[Date "2019.08.22"]
[Round "6.9"]
[White "Abal Cores, Lucas"]
[Black "Sanchez Lopez, Juan Manuel"]
[Result "1/2-1/2"]
[ECO "B22"]
[WhiteElo "2290"]
[BlackElo "2084"]
[Annotator "NA"]
[PlyCount "96"]
[EventDate "2019.08.19"]
[EventType "team-tourn"]
[EventCountry "ESP"]
[SourceTitle "playchess.com"]
[Source "ChessBase"]
[SourceQuality "1"]
[TimeControl "5400+30"]

1. e4 {[%emt 0:00:00]} c5 {[%emt 0:00:00]} 2. c3 {[%emt 0:00:00]} e5 {[%emt 0:00:21]} 3. Nf3 {[%emt 0:01:31]} Nc6 {[%emt 0:00:10]} 4. Bb5 {[%emt 0:04:04]} Nge7 {[%emt 0:01:31]} 5. Na3 {[%emt 0:08:22]} a6 {[%emt 0:03:35]} 6. Nc4 {[%emt 0:08:33]} d6 {[%emt 0:04:38]} 7. Bxc6+ {[%emt 0:00:05]} Nxc6 {[%emt 0:03:33]} 8. O-O {[%emt 0:06:20]} Be7 {[%emt 0:03:26]} 9. d4 {[%emt 0:03:40]} exd4 {[%emt 0:03:14]} 10. cxd4 {[%emt 0:00:12]} Bg4 {[%emt 0:03:29]} 11. d5 {[%emt 0:05:40]} Nd4 {[%emt 0:04:59]} 12. Ncd2 {[%emt 0:00:06]} O-O {[%emt 0:03:59]} 13. h3 {[%emt 0:00:13]} Nxf3+ {[%emt 0:02:12]} 14. Nxf3 {[%emt 0:00:02]} Bxf3 {[%emt 0:00:16]} 15. Qxf3 {[%emt 0:00:11]} Bf6 {[%emt 0:00:08]} 16. Qb3 {[%emt 0:06:41]} Re8 {[%emt 0:01:59]} 17. Re1 {[%emt 0:02:17]} Bd4 {[%emt 0:08:50]} 18. Bf4 {[%emt 0:08:30]} Qf6 {[%emt 0:03:44]} 19. Bg3 {[%emt 0:00:08]} b5 {[%emt 0:01:16]} 20. Re2 {[%emt 0:00:11]} c4 {[%emt 0:04:34]} 21. Qc2 {[%emt 0:00:41]} Rac8 {[%emt 0:01:05]} 22. Rf1 {[%emt 0:04:34]} Qg6 {[%emt 0:01:12]} 23. Kh2 {[%emt 0:00:23]} h5 {[%emt 0:02:07]} 24. f4 {[%emt 0:03:04]} Qf6 {[%emt 0:02:16]} 25. Rf3 {[%emt 0:01:46]} h4 {[%emt 0:01:45]} 26. Be1 {[%emt 0:00:28]} Rc7 {[%emt 0:13:16]} 27. Bc3 {[%emt 0:11:26]} Bxc3 {[%emt 0:01:48]} 28. Qxc3 {[%emt 0:00:12]} Qxc3 {[%emt 0:01:04]} 29. bxc3 {[%emt 0:00:06]} Rc5 {[%emt 0:01:29]} 30. Rfe3 {[%emt 0:02:08]} f5 {[%emt 0:01:54]} 31. Kg1 {[%emt 0:00:01]} fxe4 {[%emt 0:02:18]} 32. Rd2 {[%emt 0:00:05]} Kf7 {[%emt 0:00:29]} 33. Kf2 {[%emt 0:00:25]} Kf6 {[%emt 0:01:50]} 34. g4 {[%emt 0:00:43]} g5 {[%emt 0:02:55]} 35. f5 {[%emt 0:00:20]} Re5 {[%emt 0:04:01]} 36. Ke2 {[%emt 0:01:26]} Rc8 {[%emt 0:03:18]} 37. Rd4 {[%emt 0:00:35]} Rc5 {[%emt 0:01:23]} 38. Rd2 {[%emt 0:01:12]} a5 {[%emt 0:02:24]} 39. a3 {[%emt 0:00:06]} Rcxd5 {[%emt 0:00:05]} 40. Rxd5 {[%emt 0:00:12]} Rxd5 {[%emt 0:00:04]} 41. Rxe4 {[%emt 0:00:06]} Rd3 {[%emt 0:02:44]} 42. Re3 {[%emt 0:00:01]} Rd5 {[%emt 0:00:54]} 43. Re4 {[%emt 0:00:11]} Kf7 {[%emt 0:01:54]} 44. Re3 {[%emt 0:00:59]} Rc5 {[%emt 0:00:34]} 45. Re6 {[%emt 0:00:41]} Rd5 {[%emt 0:02:56]} 46. Re3 {[%emt 0:00:05]} Rc5 {[%emt 0:00:46]} 47. Re6 {[%emt 0:00:20]} Rd5 {[%emt 0:00:21]} 48. Re3 {[%emt 0:00:09]} Kf6 {[%emt 0:00:09]} 1/2-1/2